[Event "Early-Titled-Tuesday-Blitz-October-03-2023"]
[Site "Chess.com"]
[Date "2023.10.03"]
[Round "4"]
[White "arenal72"]
[Black "Malysch"]
[Result "1-0"]
[WhiteElo "2381"]
[BlackElo "2547"]
[TimeControl "180+1"]
[EndTime "8:39:47 PDT"]
[Termination "arenal72 won on time"]

1. e4 {[%clk 0:03:00.9]} 1... Nf6 {[%clk 0:02:56.9]} 2. Nc3 {[%clk 0:02:56]}
2... d5 {[%clk 0:02:56.3]} 3. e5 {[%clk 0:02:53.4]} 3... Nfd7 {[%clk 0:02:56.2]}
4. d4 {[%clk 0:02:51.3]} 4... c5 {[%clk 0:02:55.7]} 5. f4 {[%clk 0:02:46.5]}
5... cxd4 {[%clk 0:02:55.2]} 6. Qxd4 {[%clk 0:02:46.3]} 6... e6 {[%clk
0:02:54.8]} 7. Nf3 {[%clk 0:02:44.8]} 7... Nc6 {[%clk 0:02:55.7]} 8. Qd2 {[%clk
0:02:43.7]} 8... a6 {[%clk 0:02:52.7]} 9. a3 {[%clk 0:02:40.4]} 9... b5 {[%clk
0:02:52.3]} 10. Qf2 {[%clk 0:02:39.3]} 10... Bc5 {[%clk 0:02:49.6]} 11. Be3
{[%clk 0:02:34.9]} 11... Qb6 {[%clk 0:02:49.3]} 12. Bxc5 {[%clk 0:02:33.7]}
12... Nxc5 {[%clk 0:02:49]} 13. Bd3 {[%clk 0:02:21.4]} 13... b4 {[%clk
0:02:36.9]} 14. axb4 {[%clk 0:02:16.7]} 14... Nxb4 {[%clk 0:02:37.8]} 15. O-O
{[%clk 0:02:14.9]} 15... Rb8 {[%clk 0:02:33.4]} 16. Rfd1 {[%clk 0:01:51]} 16...
Bd7 {[%clk 0:02:24.7]} 17. Nd4 {[%clk 0:01:38.7]} 17... h6 {[%clk 0:02:10.5]}
18. Rab1 {[%clk 0:01:18.4]} 18... O-O {[%clk 0:02:08.5]} 19. Bf1 {[%clk
0:01:09]} 19... Rfc8 {[%clk 0:02:06.2]} 20. Kh1 {[%clk 0:01:05.1]} 20... a5
{[%clk 0:02:04.4]} 21. f5 {[%clk 0:00:55.2]} 21... Ne4 {[%clk 0:01:53.6]} 22.
Nxe4 {[%clk 0:00:54.2]} 22... dxe4 {[%clk 0:01:54.5]} 23. c3 {[%clk 0:00:50.2]}
23... Nd5 {[%clk 0:01:45.6]} 24. f6 {[%clk 0:00:50.4]} 24... Nxc3 {[%clk
0:01:02.6]} 25. bxc3 {[%clk 0:00:48]} 25... Qxb1 {[%clk 0:01:00.9]} 26. Rxb1
{[%clk 0:00:48.6]} 26... Rxb1 {[%clk 0:00:58.2]} 27. h3 {[%clk 0:00:34.7]} 27...
Rxc3 {[%clk 0:00:55]} 28. Kh2 {[%clk 0:00:34.3]} 28... g5 {[%clk 0:00:37.2]} 29.
Qd2 {[%clk 0:00:23.5]} 29... Rc7 {[%clk 0:00:28.5]} 30. Qxa5 {[%clk 0:00:19.7]}
30... Rc8 {[%clk 0:00:23.4]} 31. Be2 {[%clk 0:00:17.5]} 31... Rb2 {[%clk
0:00:23.5]} 32. Qa3 {[%clk 0:00:14.2]} 32... Rd2 {[%clk 0:00:22.1]} 33. Qe3
{[%clk 0:00:13.9]} 33... Rb2 {[%clk 0:00:20.1]} 34. h4 {[%clk 0:00:14]} 34...
Kh7 {[%clk 0:00:13.5]} 35. hxg5 {[%clk 0:00:12.8]} 35... Rg8 {[%clk 0:00:14]}
36. Qxe4+ {[%clk 0:00:10.6]} 36... Kh8 {[%clk 0:00:11]} 37. Bd3 {[%clk
0:00:10.1]} 37... Rg6 {[%clk 0:00:05.3]} 38. Nf3 {[%clk 0:00:08.9]} 1-0

[Event "Early-Titled-Tuesday-Blitz-October-03-2023"]
[Site "Chess.com"]
[Date "2023.10.03"]
[Round "4"]
[White "deribas12345"]
[Black "esrosenberg"]
[Result "1-0"]
[WhiteElo "2562"]
[BlackElo "2365"]
[TimeControl "180+1"]
[EndTime "8:39:51 PDT"]
[Termination "deribas12345 won by resignation"]

1. d4 {[%clk 0:03:00.9]} 1... d5 {[%clk 0:03:00]} 2. c4 {[%clk 0:03:00.9]} 2...
e6 {[%clk 0:03:00.4]} 3. Nc3 {[%clk 0:03:01.2]} 3... c5 {[%clk 0:03:01]} 4. e3
{[%clk 0:03:00.6]} 4... Nf6 {[%clk 0:03:00.9]} 5. Nf3 {[%clk 0:03:00]} 5... a6
{[%clk 0:03:00.9]} 6. cxd5 {[%clk 0:02:55.2]} 6... exd5 {[%clk 0:03:00.3]} 7.
Be2 {[%clk 0:02:53.7]} 7... Be7 {[%clk 0:02:57]} 8. dxc5 {[%clk 0:02:53.2]} 8...
Bxc5 {[%clk 0:02:57.4]} 9. O-O {[%clk 0:02:54.1]} 9... O-O {[%clk 0:02:58.2]}
10. b3 {[%clk 0:02:54.6]} 10... Nc6 {[%clk 0:02:44.9]} 11. Bb2 {[%clk
0:02:52.7]} 11... Be6 {[%clk 0:02:27.1]} 12. Rc1 {[%clk 0:02:51.3]} 12... Ba7
{[%clk 0:02:27.3]} 13. Na4 {[%clk 0:02:48.8]} 13... Rc8 {[%clk 0:02:12.1]} 14.
Nc5 {[%clk 0:02:46.8]} 14... Qe7 {[%clk 0:02:03]} 15. Nxe6 {[%clk 0:02:45.7]}
15... fxe6 {[%clk 0:02:02.7]} 16. Nd4 {[%clk 0:02:40]} 16... Nxd4 {[%clk
0:01:47.6]} 17. Bxd4 {[%clk 0:02:38.2]} 17... Bb8 {[%clk 0:01:48.1]} 18. Rxc8
{[%clk 0:02:33.8]} 18... Rxc8 {[%clk 0:01:48.3]} 19. g3 {[%clk 0:02:30.2]} 19...
e5 {[%clk 0:01:46.3]} 20. Bb2 {[%clk 0:02:30.1]} 20... Qe6 {[%clk 0:01:38.3]}
21. Bf3 {[%clk 0:02:23.1]} 21... g6 {[%clk 0:01:18.1]} 22. Qe2 {[%clk
0:02:18.4]} 22... h5 {[%clk 0:01:17.4]} 23. Rd1 {[%clk 0:02:16.3]} 23... Rd8
{[%clk 0:01:09.2]} 24. Bg2 {[%clk 0:02:10]} 24... Ba7 {[%clk 0:01:00.4]} 25. h3
{[%clk 0:02:05.7]} 25... b5 {[%clk 0:00:57.8]} 26. Qc2 {[%clk 0:02:02.9]} 26...
Kg7 {[%clk 0:00:51.2]} 27. Qc7+ {[%clk 0:01:59.2]} 27... Rd7 {[%clk 0:00:47.3]}
28. Qxe5 {[%clk 0:01:59.1]} 28... Qxe5 {[%clk 0:00:42.1]} 29. Bxe5 {[%clk
0:02:00]} 29... Kf7 {[%clk 0:00:39.6]} 30. Bxf6 {[%clk 0:01:56.4]} 30... Kxf6
{[%clk 0:00:40.5]} 31. Rxd5 {[%clk 0:01:56.7]} 31... Rxd5 {[%clk 0:00:40.5]} 32.
Bxd5 {[%clk 0:01:57.6]} 32... a5 {[%clk 0:00:41.2]} 33. Kf1 {[%clk 0:01:55.5]}
33... a4 {[%clk 0:00:41.4]} 34. bxa4 {[%clk 0:01:55.1]} 34... bxa4 {[%clk
0:00:42.2]} 35. Ke2 {[%clk 0:01:55.8]} 35... a3 {[%clk 0:00:43.1]} 36. f4 {[%clk
0:01:52.9]} 36... g5 {[%clk 0:00:40.9]} 37. h4 {[%clk 0:01:47.3]} 37... gxh4
{[%clk 0:00:38.8]} 38. gxh4 {[%clk 0:01:47.3]} 38... Kf5 {[%clk 0:00:37.1]} 39.
Bf3 {[%clk 0:01:44.3]} 39... Kg6 {[%clk 0:00:36]} 40. e4 {[%clk 0:01:37.7]}
40... Bb6 {[%clk 0:00:28.7]} 41. Bg2 {[%clk 0:01:33.7]} 41... Bd8 {[%clk
0:00:28.1]} 42. e5 {[%clk 0:01:29.7]} 42... Bxh4 {[%clk 0:00:28.1]} 43. Be4+
{[%clk 0:01:29.2]} 43... Kf7 {[%clk 0:00:24.8]} 44. Ke3 {[%clk 0:01:28.6]} 44...
Be1 {[%clk 0:00:20.9]} 45. f5 {[%clk 0:01:23.7]} 45... h4 {[%clk 0:00:21.5]} 46.
Bd5+ {[%clk 0:01:23.3]} 46... Ke7 {[%clk 0:00:22]} 47. f6+ {[%clk 0:01:22.5]}
47... Kf8 {[%clk 0:00:22.7]} 48. Bg2 {[%clk 0:01:18.4]} 48... Kf7 {[%clk
0:00:20.3]} 49. Ke4 {[%clk 0:01:15.7]} 49... Bc3 {[%clk 0:00:18.4]} 50. Kf5
{[%clk 0:01:15]} 50... Kf8 {[%clk 0:00:16.3]} 51. e6 {[%clk 0:01:13.6]} 51...
Bb4 {[%clk 0:00:17.2]} 52. Kg5 {[%clk 0:01:06.8]} 52... Be1 {[%clk 0:00:15.1]}
53. e7+ {[%clk 0:01:04.5]} 53... Kf7 {[%clk 0:00:14.4]} 54. Bd5+ {[%clk
0:01:03.6]} 1-0

[Event "Early-Titled-Tuesday-Blitz-October-03-2023"]
[Site "Chess.com"]
[Date "2023.10.03"]
[Round "4"]
[White "ama18"]
[Black "ODreamchess"]
[Result "0-1"]
[WhiteElo "2539"]
[BlackElo "2765"]
[TimeControl "180+1"]
[EndTime "8:39:52 PDT"]
[Termination "ODreamchess won by resignation"]

1. e4 {[%clk 0:03:00.9]} 1... c6 {[%clk 0:02:56]} 2. d4 {[%clk 0:02:59.1]} 2...
d5 {[%clk 0:02:55.8]} 3. e5 {[%clk 0:02:59.6]} 3... Bf5 {[%clk 0:02:52.1]} 4. h4
{[%clk 0:02:58.9]} 4... h5 {[%clk 0:02:52.1]} 5. Bg5 {[%clk 0:02:57.8]} 5... Qb6
{[%clk 0:02:47.5]} 6. Bd3 {[%clk 0:02:55.5]} 6... Bxd3 {[%clk 0:02:47.2]} 7.
Qxd3 {[%clk 0:02:56.4]} 7... Qa6 {[%clk 0:02:45.2]} 8. Qh3 {[%clk 0:02:54.2]}
8... e6 {[%clk 0:02:45.4]} 9. Nc3 {[%clk 0:02:52.8]} 9... Nd7 {[%clk 0:02:45]}
10. Nf3 {[%clk 0:02:50.9]} 10... Ne7 {[%clk 0:02:45.1]} 11. Bxe7 {[%clk
0:02:35.1]} 11... Bxe7 {[%clk 0:02:45.1]} 12. Qg3 {[%clk 0:02:35.4]} 12... g6
{[%clk 0:02:45.1]} 13. Qf4 {[%clk 0:02:32.8]} 13... b5 {[%clk 0:02:41.1]} 14.
O-O {[%clk 0:02:29.4]} 14... Qc8 {[%clk 0:02:36.6]} 15. a4 {[%clk 0:02:25.8]}
15... b4 {[%clk 0:02:34.9]} 16. Nd1 {[%clk 0:02:26.2]} 16... c5 {[%clk
0:02:30.2]} 17. dxc5 {[%clk 0:02:22.9]} 17... Qxc5 {[%clk 0:02:28.6]} 18. c3
{[%clk 0:02:18.3]} 18... a5 {[%clk 0:02:26.4]} 19. cxb4 {[%clk 0:02:16.8]} 19...
Qxb4 {[%clk 0:02:26.4]} 20. Qxb4 {[%clk 0:02:09.7]} 20... Bxb4 {[%clk
0:02:27.3]} 21. Ne3 {[%clk 0:02:09.3]} 21... Ke7 {[%clk 0:02:18.5]} 22. Nc2
{[%clk 0:02:02]} 22... Rhb8 {[%clk 0:02:17]} 23. Ncd4 {[%clk 0:01:56.9]} 23...
Rc8 {[%clk 0:02:03.2]} 24. Rac1 {[%clk 0:01:46.4]} 24... Nc5 {[%clk 0:01:58.4]}
25. b3 {[%clk 0:01:34.9]} 25... Nd3 {[%clk 0:01:58.1]} 26. Rcd1 {[%clk
0:01:10.7]} 26... Rc3 {[%clk 0:01:50.8]} 27. Nb5 {[%clk 0:01:08.3]} 27... Rac8
{[%clk 0:01:16.7]} 28. Nxc3 {[%clk 0:01:04.1]} 28... Rxc3 {[%clk 0:01:17.6]} 29.
Rb1 {[%clk 0:00:57.1]} 29... Bc5 {[%clk 0:01:14.6]} 30. g3 {[%clk 0:00:10.4]}
30... Kd7 {[%clk 0:00:35.3]} 31. Kg2 {[%clk 0:00:09.5]} 31... Kc6 {[%clk
0:00:35]} 32. Ne1 {[%clk 0:00:08.6]} 32... Nxe5 {[%clk 0:00:34.8]} 33. f3 {[%clk
0:00:06]} 33... d4 {[%clk 0:00:32.3]} 34. Rd1 {[%clk 0:00:05.4]} 34... Kd5
{[%clk 0:00:31.6]} 35. Kh1 {[%clk 0:00:03.8]} 35... Rxb3 {[%clk 0:00:31.6]} 36.
Rd2 {[%clk 0:00:03.7]} 36... Nc4 {[%clk 0:00:31.7]} 37. Rd3 {[%clk 0:00:03.2]}
37... Rb1 {[%clk 0:00:28]} 38. Rf2 {[%clk 0:00:03.7]} 38... Rxe1+ {[%clk
0:00:27.5]} 39. Kh2 {[%clk 0:00:03.9]} 39... e5 {[%clk 0:00:26.2]} 40. Rc2
{[%clk 0:00:02.9]} 40... Re3 {[%clk 0:00:26.3]} 41. Rxe3 {[%clk 0:00:02.7]}
41... Nxe3 {[%clk 0:00:25.7]} 42. Re2 {[%clk 0:00:03]} 42... d3 {[%clk
0:00:25.4]} 43. Rd2 {[%clk 0:00:03.6]} 43... Kd4 {[%clk 0:00:25.9]} 0-1

[Event "Early-Titled-Tuesday-Blitz-October-03-2023"]
[Site "Chess.com"]
[Date "2023.10.03"]
[Round "4"]
[White "gtnamfrq"]
[Black "tetrix83"]
[Result "0-1"]
[WhiteElo "2415"]
[BlackElo "2613"]
[TimeControl "180+1"]
[EndTime "8:39:52 PDT"]
[Termination "tetrix83 won by resignation"]

1. e4 {[%clk 0:03:00.9]} 1... c5 {[%clk 0:02:59.9]} 2. Nf3 {[%clk 0:03:01.1]}
2... e6 {[%clk 0:03:00.2]} 3. d4 {[%clk 0:03:01.8]} 3... cxd4 {[%clk 0:03:00.6]}
4. Nxd4 {[%clk 0:03:02.7]} 4... a6 {[%clk 0:03:01.3]} 5. Bd3 {[%clk 0:03:02.1]}
5... Qc7 {[%clk 0:03:01.3]} 6. O-O {[%clk 0:03:01.8]} 6... Nf6 {[%clk
0:03:01.5]} 7. Qe2 {[%clk 0:03:02.1]} 7... d6 {[%clk 0:03:01.9]} 8. c4 {[%clk
0:03:02.3]} 8... Nbd7 {[%clk 0:03:02.2]} 9. Nc3 {[%clk 0:02:58.1]} 9... Ne5
{[%clk 0:03:02.2]} 10. f4 {[%clk 0:02:51]} 10... Nxd3 {[%clk 0:03:02.1]} 11.
Qxd3 {[%clk 0:02:51.9]} 11... Be7 {[%clk 0:03:01.5]} 12. b3 {[%clk 0:02:50.4]}
12... b6 {[%clk 0:03:01.5]} 13. Bb2 {[%clk 0:02:50.3]} 13... O-O {[%clk
0:03:01.7]} 14. Rae1 {[%clk 0:02:50.4]} 14... Bb7 {[%clk 0:03:01.3]} 15. Nf3
{[%clk 0:02:43.7]} 15... Rad8 {[%clk 0:02:56.3]} 16. Qe2 {[%clk 0:02:27.8]}
16... Nd7 {[%clk 0:02:40.9]} 17. Kh1 {[%clk 0:02:23.8]} 17... Nc5 {[%clk
0:02:39.8]} 18. f5 {[%clk 0:02:09.1]} 18... Bf6 {[%clk 0:02:32.5]} 19. b4 {[%clk
0:01:50]} 19... Bxc3 {[%clk 0:02:30.3]} 20. bxc5 {[%clk 0:01:44.8]} 20... Bxb2
{[%clk 0:02:29.3]} 21. cxd6 {[%clk 0:01:40.4]} 21... Rxd6 {[%clk 0:02:24.4]} 22.
Qxb2 {[%clk 0:01:40.4]} 22... Qxc4 {[%clk 0:02:22.6]} 23. f6 {[%clk 0:01:29.1]}
23... Bxe4 {[%clk 0:01:47.8]} 24. Qe5 {[%clk 0:01:18]} 24... Bd3 {[%clk
0:01:24.4]} 25. Qxd6 {[%clk 0:01:08]} 25... Bxf1 {[%clk 0:01:21.8]} 26. Nd2
{[%clk 0:01:02.1]} 26... Qd3 {[%clk 0:01:17.4]} 27. Qf4 {[%clk 0:00:47.6]} 27...
Bxg2+ {[%clk 0:00:55.3]} 28. Kxg2 {[%clk 0:00:47.2]} 28... Qg6+ {[%clk
0:00:55.4]} 29. Kf2 {[%clk 0:00:43.7]} 29... Qxf6 {[%clk 0:00:52.3]} 30. Qxf6
{[%clk 0:00:43.7]} 30... gxf6 {[%clk 0:00:52]} 31. Rg1+ {[%clk 0:00:44.4]} 31...
Kh8 {[%clk 0:00:52]} 32. Ne4 {[%clk 0:00:45.3]} 32... f5 {[%clk 0:00:51]} 33.
Nd6 {[%clk 0:00:44.4]} 33... h6 {[%clk 0:00:48.6]} 34. Ke3 {[%clk 0:00:43.9]}
34... Kh7 {[%clk 0:00:47.1]} 35. Kf4 {[%clk 0:00:41.4]} 35... f6 {[%clk
0:00:45.8]} 36. Rc1 {[%clk 0:00:41.5]} 36... Kg6 {[%clk 0:00:43.9]} 37. Rg1+
{[%clk 0:00:22.3]} 37... Kh5 {[%clk 0:00:43.9]} 38. Rg7 {[%clk 0:00:16]} 38...
Rd8 {[%clk 0:00:43.3]} 39. Nf7 {[%clk 0:00:14.5]} 39... Rd4+ {[%clk 0:00:42.4]}
40. Ke3 {[%clk 0:00:14.5]} 40... Rg4 {[%clk 0:00:40.3]} 41. Rxg4 {[%clk
0:00:09.9]} 41... fxg4 {[%clk 0:00:38.2]} 42. Nd6 {[%clk 0:00:09]} 42... Kh4
{[%clk 0:00:37.1]} 43. Ne4 {[%clk 0:00:06.1]} 43... f5 {[%clk 0:00:36.9]} 44.
Nf2 {[%clk 0:00:05.4]} 44... e5 {[%clk 0:00:36.2]} 45. Nd3 {[%clk 0:00:05.4]}
45... f4+ {[%clk 0:00:36]} 46. Ke2 {[%clk 0:00:04.6]} 46... Kh3 {[%clk
0:00:33.6]} 47. Nxe5 {[%clk 0:00:05]} 47... h5 {[%clk 0:00:33.7]} 48. Kf2 {[%clk
0:00:04.9]} 48... Kxh2 {[%clk 0:00:33.6]} 49. Ng6 {[%clk 0:00:04.2]} 49... g3+
{[%clk 0:00:31.8]} 50. Kf3 {[%clk 0:00:03.6]} 50... g2 {[%clk 0:00:31.9]} 51.
Nxf4 {[%clk 0:00:03.7]} 0-1

[Event "Early-Titled-Tuesday-Blitz-October-03-2023"]
[Site "Chess.com"]
[Date "2023.10.03"]
[Round "4"]
[White "Polish_fighter3000"]
[Black "Ergali_Suleimen"]
[Result "0-1"]
[WhiteElo "3071"]
[BlackElo "2653"]
[TimeControl "180+1"]
[EndTime "8:39:53 PDT"]
[Termination "Ergali_Suleimen won on time"]

1. g4 {[%clk 0:03:00.9]} 1... d5 {[%clk 0:02:57.8]} 2. Bg2 {[%clk 0:02:59.8]}
2... e6 {[%clk 0:02:55.7]} 3. d4 {[%clk 0:02:57]} 3... Ne7 {[%clk 0:02:51.9]} 4.
h4 {[%clk 0:02:55.9]} 4... c5 {[%clk 0:02:50.1]} 5. e3 {[%clk 0:02:51.9]} 5...
Nbc6 {[%clk 0:02:48.3]} 6. h5 {[%clk 0:02:46.2]} 6... e5 {[%clk 0:02:37]} 7.
dxc5 {[%clk 0:02:35.8]} 7... Qa5+ {[%clk 0:02:36]} 8. Bd2 {[%clk 0:02:24.1]}
8... Qxc5 {[%clk 0:02:35.4]} 9. Nc3 {[%clk 0:02:24.7]} 9... Be6 {[%clk
0:02:34.4]} 10. Nh3 {[%clk 0:02:21.5]} 10... f6 {[%clk 0:02:31.3]} 11. f4 {[%clk
0:02:09.3]} 11... O-O-O {[%clk 0:02:29.6]} 12. f5 {[%clk 0:02:04.6]} 12... Bf7
{[%clk 0:02:28.3]} 13. Nf2 {[%clk 0:02:04.1]} 13... Kb8 {[%clk 0:02:26]} 14. Qe2
{[%clk 0:02:00]} 14... h6 {[%clk 0:02:21.1]} 15. O-O {[%clk 0:01:51.9]} 15... d4
{[%clk 0:02:17.8]} 16. Nce4 {[%clk 0:01:48.4]} 16... Qb6 {[%clk 0:02:17.7]} 17.
c4 {[%clk 0:01:32.4]} 17... dxe3 {[%clk 0:01:47.6]} 18. Bxe3 {[%clk 0:01:33.3]}
18... Nd4 {[%clk 0:01:44.9]} 19. Bxd4 {[%clk 0:01:27.7]} 19... Rxd4 {[%clk
0:01:44.8]} 20. Rfc1 {[%clk 0:01:20.4]} 20... Nc6 {[%clk 0:01:39.9]} 21. b4
{[%clk 0:01:12.3]} 21... Qxb4 {[%clk 0:01:16.3]} 22. Rab1 {[%clk 0:01:10.9]}
22... Rxc4 {[%clk 0:01:14.3]} 23. Rd1 {[%clk 0:00:59.5]} 23... Nd4 {[%clk
0:00:55.1]} 24. Qe3 {[%clk 0:00:37.6]} 24... Qa3 {[%clk 0:00:51.1]} 25. Qxa3
{[%clk 0:00:21.3]} 25... Bxa3 {[%clk 0:00:51.5]} 26. Nd6 {[%clk 0:00:22]} 26...
Bxd6 {[%clk 0:00:36.9]} 27. Rxb7+ {[%clk 0:00:22.3]} 27... Kc8 {[%clk
0:00:37.5]} 28. Rxf7 {[%clk 0:00:23.2]} 28... Rc7 {[%clk 0:00:37.6]} 29. Ne4
{[%clk 0:00:18.3]} 29... Rd8 {[%clk 0:00:33.2]} 30. Rxc7+ {[%clk 0:00:12.9]}
30... Bxc7 {[%clk 0:00:33.4]} 31. Kf1 {[%clk 0:00:06.7]} 31... Nc2 {[%clk
0:00:30.8]} 32. Rxd8+ {[%clk 0:00:03.6]} 32... Kxd8 {[%clk 0:00:31.4]} 33. Ke2
{[%clk 0:00:04.4]} 33... Nd4+ {[%clk 0:00:29.3]} 34. Kd3 {[%clk 0:00:04.2]}
34... Bb6 {[%clk 0:00:28.3]} 35. Bf1 {[%clk 0:00:03.4]} 35... Nf3 {[%clk
0:00:26.4]} 36. Be2 {[%clk 0:00:03.1]} 36... Nd4 {[%clk 0:00:24.2]} 37. Bd1
{[%clk 0:00:03.1]} 37... Ke7 {[%clk 0:00:24.4]} 38. Bb3 {[%clk 0:00:02.8]} 38...
Nf3 {[%clk 0:00:21]} 39. Kc4 {[%clk 0:00:02.9]} 39... Nh2 {[%clk 0:00:20.1]} 40.
Bd1 {[%clk 0:00:02.6]} 40... Nf1 {[%clk 0:00:20.3]} 41. Be2 {[%clk 0:00:02]}
41... Ne3+ {[%clk 0:00:20.3]} 42. Kb5 {[%clk 0:00:02.5]} 42... Nd5 {[%clk
0:00:19]} 0-1

[Event "Early-Titled-Tuesday-Blitz-October-03-2023"]
[Site "Chess.com"]
[Date "2023.10.03"]
[Round "4"]
[White "Kyrie-Eleven"]
[Black "TedBelanoff"]
[Result "1-0"]
[WhiteElo "2313"]
[BlackElo "2161"]
[TimeControl "180+1"]
[EndTime "8:39:55 PDT"]
[Termination "Kyrie-Eleven won on time"]

1. d4 {[%clk 0:02:54.4]} 1... g6 {[%clk 0:01:25.5]} 2. c4 {[%clk 0:02:53.9]}
2... Bg7 {[%clk 0:01:26.4]} 3. Nc3 {[%clk 0:02:53.9]} 3... e6 {[%clk 0:01:23.4]}
4. e4 {[%clk 0:02:53.5]} 4... c6 {[%clk 0:01:21.7]} 5. Be3 {[%clk 0:02:49.2]}
5... d5 {[%clk 0:01:21]} 6. cxd5 {[%clk 0:02:48.7]} 6... cxd5 {[%clk 0:01:18.9]}
7. e5 {[%clk 0:02:48.8]} 7... Nc6 {[%clk 0:01:18.3]} 8. f4 {[%clk 0:02:40.6]}
8... Nge7 {[%clk 0:01:18.3]} 9. Nf3 {[%clk 0:02:39.9]} 9... Nf5 {[%clk 0:01:18]}
10. Bf2 {[%clk 0:02:40.3]} 10... Qb6 {[%clk 0:01:17.8]} 11. g4 {[%clk
0:02:36.2]} 11... Qxb2 {[%clk 0:01:12.7]} 12. Rc1 {[%clk 0:02:26.2]} 12... Nfe7
{[%clk 0:01:05.3]} 13. Bb5 {[%clk 0:02:21.3]} 13... O-O {[%clk 0:01:03.9]} 14.
O-O {[%clk 0:02:20.5]} 14... a6 {[%clk 0:01:01.1]} 15. Bd3 {[%clk 0:01:56.7]}
15... Qa3 {[%clk 0:00:58.3]} 16. f5 {[%clk 0:01:43]} 16... exf5 {[%clk
0:00:53.5]} 17. gxf5 {[%clk 0:01:43.9]} 17... Bxf5 {[%clk 0:00:52.6]} 18. Bxf5
{[%clk 0:01:42.2]} 18... Nxf5 {[%clk 0:00:40.7]} 19. Nxd5 {[%clk 0:01:41.7]}
19... Qxa2 {[%clk 0:00:40.3]} 20. Nc3 {[%clk 0:01:32.7]} 20... Qa5 {[%clk
0:00:38.9]} 21. Qb3 {[%clk 0:01:25.2]} 21... Qd8 {[%clk 0:00:20.6]} 22. Rfd1
{[%clk 0:01:20.4]} 22... Na5 {[%clk 0:00:16.4]} 23. Qa2 {[%clk 0:01:17.4]} 23...
b5 {[%clk 0:00:16.3]} 24. Ne4 {[%clk 0:01:16.4]} 24... Nc4 {[%clk 0:00:16.2]}
25. Rxc4 {[%clk 0:01:08.4]} 25... bxc4 {[%clk 0:00:15.2]} 26. Qxc4 {[%clk
0:01:09.3]} 26... Nh4 {[%clk 0:00:15.3]} 27. Ne1 {[%clk 0:01:01.9]} 27... Nf5
{[%clk 0:00:13.8]} 28. Nf3 {[%clk 0:00:57.1]} 28... h6 {[%clk 0:00:12]} 29. d5
{[%clk 0:00:55.1]} 29... Rc8 {[%clk 0:00:11.7]} 30. Qxa6 {[%clk 0:00:52.3]}
30... g5 {[%clk 0:00:11.8]} 31. Qd3 {[%clk 0:00:48.7]} 31... Ne7 {[%clk
0:00:10]} 32. Nd6 {[%clk 0:00:47.4]} 32... Ng6 {[%clk 0:00:09.7]} 33. Nxc8
{[%clk 0:00:46]} 33... Qxc8 {[%clk 0:00:10.2]} 34. Bg3 {[%clk 0:00:42.9]} 34...
Qg4 {[%clk 0:00:07.9]} 35. Rf1 {[%clk 0:00:28.2]} 35... Nf4 {[%clk 0:00:07.6]}
36. Qd1 {[%clk 0:00:25.8]} 36... Nh3+ {[%clk 0:00:06.4]} 37. Kh1 {[%clk
0:00:26]} 37... Qh5 {[%clk 0:00:06.6]} 38. Nd4 {[%clk 0:00:23]} 38... g4 {[%clk
0:00:06.8]} 39. Rf5 {[%clk 0:00:21.4]} 39... Qg6 {[%clk 0:00:06.3]} 40. Qf1
{[%clk 0:00:20.2]} 40... Rd8 {[%clk 0:00:05.3]} 41. d6 {[%clk 0:00:19.3]} 41...
f6 {[%clk 0:00:04.9]} 42. Nc6 {[%clk 0:00:19.3]} 42... Qf7 {[%clk 0:00:03.1]}
43. Nxd8 {[%clk 0:00:17.5]} 43... Qd5+ {[%clk 0:00:02.8]} 44. Qg2 {[%clk
0:00:18.2]} 44... Qd1+ {[%clk 0:00:02.4]} 45. Rf1 {[%clk 0:00:18.9]} 45... Qd5
{[%clk 0:00:02.6]} 46. Qxd5+ {[%clk 0:00:18.7]} 1-0

[Event "Early-Titled-Tuesday-Blitz-October-03-2023"]
[Site "Chess.com"]
[Date "2023.10.03"]
[Round "4"]
[White "CrushingKings"]
[Black "Roman_Ovetchkin"]
[Result "0-1"]
[WhiteElo "2515"]
[BlackElo "2704"]
[TimeControl "180+1"]
[EndTime "8:39:59 PDT"]
[Termination "Roman_Ovetchkin won on time"]

1. Nf3 {[%clk 0:03:00.9]} 1... d5 {[%clk 0:02:59.2]} 2. g3 {[%clk 0:03:01.1]}
2... Bg4 {[%clk 0:02:58.7]} 3. Bg2 {[%clk 0:03:01.4]} 3... Nd7 {[%clk
0:02:58.9]} 4. d4 {[%clk 0:03:00.8]} 4... c6 {[%clk 0:02:58]} 5. O-O {[%clk
0:03:01.1]} 5... e6 {[%clk 0:02:58.3]} 6. b3 {[%clk 0:03:00.5]} 6... Ngf6 {[%clk
0:02:57.1]} 7. Bb2 {[%clk 0:03:00.4]} 7... Be7 {[%clk 0:02:56.6]} 8. c4 {[%clk
0:03:00.7]} 8... O-O {[%clk 0:02:56.4]} 9. Nc3 {[%clk 0:02:59]} 9... h6 {[%clk
0:02:41]} 10. Re1 {[%clk 0:02:47.2]} 10... Bb4 {[%clk 0:02:33.1]} 11. a3 {[%clk
0:02:45.7]} 11... Ba5 {[%clk 0:02:27.3]} 12. Nd2 {[%clk 0:02:15]} 12... Re8
{[%clk 0:02:24.5]} 13. f4 {[%clk 0:01:45.8]} 13... c5 {[%clk 0:01:58.8]} 14.
dxc5 {[%clk 0:01:46.7]} 14... Bxc3 {[%clk 0:01:48.9]} 15. Bxc3 {[%clk
0:01:46.2]} 15... Nxc5 {[%clk 0:01:49.5]} 16. b4 {[%clk 0:01:37.4]} 16... d4
{[%clk 0:01:43]} 17. Bb2 {[%clk 0:01:30.7]} 17... Nd3 {[%clk 0:01:42.9]} 18.
exd3 {[%clk 0:01:04.4]} 18... Bxd1 {[%clk 0:01:41.9]} 19. Raxd1 {[%clk
0:01:05.3]} 19... a5 {[%clk 0:01:32.8]} 20. c5 {[%clk 0:00:56.4]} 20... axb4
{[%clk 0:01:31.5]} 21. axb4 {[%clk 0:00:57.3]} 21... Ra2 {[%clk 0:01:30.9]} 22.
Nc4 {[%clk 0:00:57.4]} 22... b5 {[%clk 0:01:23.9]} 23. cxb6 {[%clk 0:00:52.2]}
23... Nd5 {[%clk 0:01:21.5]} 24. Bxd4 {[%clk 0:00:27.2]} 24... Nxb4 {[%clk
0:01:12.6]} 25. Be5 {[%clk 0:00:27.1]} 25... Rxg2+ {[%clk 0:01:04.2]} 26. Kxg2
{[%clk 0:00:26.6]} 26... Qd5+ {[%clk 0:01:03.4]} 27. Kg1 {[%clk 0:00:21]} 27...
f6 {[%clk 0:01:00.2]} 28. Bc7 {[%clk 0:00:19.1]} 28... Ra8 {[%clk 0:00:55]} 29.
Ne3 {[%clk 0:00:13.4]} 29... Qf3 {[%clk 0:00:49.5]} 30. Rd2 {[%clk 0:00:12.6]}
30... Qb7 {[%clk 0:00:32.6]} 31. d4 {[%clk 0:00:11.8]} 31... Na6 {[%clk
0:00:25]} 32. Rc1 {[%clk 0:00:06.4]} 32... Rc8 {[%clk 0:00:22.6]} 33. Rdc2
{[%clk 0:00:03]} 33... Qe4 {[%clk 0:00:21.8]} 34. Kf2 {[%clk 0:00:03.4]} 34...
Qxd4 {[%clk 0:00:19.1]} 35. b7 {[%clk 0:00:03.7]} 35... Re8 {[%clk 0:00:18]} 36.
Rd2 {[%clk 0:00:02.8]} 36... Qa7 {[%clk 0:00:17]} 37. Rb1 {[%clk 0:00:01.5]}
37... Nxc7 {[%clk 0:00:15.9]} 38. Rc2 {[%clk 0:00:02.1]} 38... Qb8 {[%clk
0:00:14.4]} 39. Nc4 {[%clk 0:00:02.7]} 39... Nd5 {[%clk 0:00:13.7]} 40. Na5
{[%clk 0:00:03.2]} 40... Ne7 {[%clk 0:00:13.1]} 41. Kg2 {[%clk 0:00:02.5]} 41...
Kh7 {[%clk 0:00:12.7]} 42. Rb6 {[%clk 0:00:01.5]} 42... Nd5 {[%clk 0:00:11.4]}
43. Rb5 {[%clk 0:00:01]} 43... Ne7 {[%clk 0:00:10.8]} 0-1